[Event "IIFL Wealth  4th Mumbai Junior U-13"]
[Site "Mumbai"]
[Date "2018.12.31"]
[Round "2"]
[White "Kinkhabwala Hrithik"]
[Black "Kshatriya Nitin Vekhande"]
[Result "1/2-1/2"]
[ECO "B22"]
[WhiteElo "1244"]
[BlackElo "1544"]
[Annotator "NA"]
[PlyCount "110"]
[EventDate "2018.12.30"]
[EventType "swiss"]
[EventCountry "IND"]
[SourceTitle "playchess.com"]
[Source "ChessBase"]
[SourceQuality "1"]
[TimeControl "40/5400+30:1800+30"]

1. e4 {[%emt 0:00:00]} c5 {[%emt 0:00:00]} 2. c3 {[%emt 0:00:00]} d5 {[%emt 0:00:00]} 3. exd5 {[%emt 0:00:00]} Qxd5 {[%emt 0:00:00]} 4. d4 {[%emt 0:00:00]} Nf6 {[%emt 0:00:00]} 5. Nf3 {[%emt 0:00:00]} e6 {[%emt 0:00:05]} 6. Na3 {[%emt 0:03:18]} Nc6 {[%emt 0:00:43]} 7. Bc4 {[%emt 0:02:22]} Qd8 {[%emt 0:01:45]} 8. O-O {[%emt 0:04:43]} cxd4 {[%emt 0:05:47]} 9. Nb5 {[%emt 0:07:24]} a6 {[%emt 0:03:21]} 10. Nbxd4 {[%emt 0:02:05]} Nxd4 {[%emt 0:00:59]} 11. Nxd4 {[%emt 0:07:14]} Be7 {[%emt 0:00:09]} 12. Qf3 {[%emt 0:07:03]} O-O {[%emt 0:00:50]} 13. Rd1 {[%emt 0:03:51]} Qc7 {[%emt 0:01:32]} 14. Bb3 {[%emt 0:01:45]} Bd6 {[%emt 0:07:23]} 15. h3 {[%emt 0:04:04]} e5 {[%emt 0:02:38]} 16. Nc2 {[%emt 0:06:37]} e4 {[%emt 0:08:20]} 17. Qe2 {[%emt 0:02:25]} b6 {[%emt 0:05:30]} 18. Bg5 {[%emt 0:04:30]} Bf5 {[%emt 0:01:51]} 19. Bxf6 {[%emt 0:06:54]} gxf6 {[%emt 0:00:20]} 20. Ne3 {[%emt 0:02:05]} Bg6 {[%emt 0:00:46]} 21. Nd5 {[%emt 0:05:56]} Qd8 {[%emt 0:01:48]} 22. Qe3 {[%emt 0:03:10]} Bc5 {[%emt 0:02:52]} 23. Qh6 {[%emt 0:00:55]} Kh8 {[%emt 0:02:27]} 24. h4 {[%emt 0:02:23]} Rg8 {[%emt 0:17:32]} 25. Kf1 {[%emt 0:11:48]} f5 {[%emt 0:16:39]} 26. Nf4 {[%emt 0:10:04]} Qf6 {[%emt 0:02:08]} 27. Rd7 {[%emt 0:01:08]} Bf8 {[%emt 0:13:00]} 28. Qg5 Qxg5 {[%emt 0:01:04]} 29. hxg5 {[%emt 0:00:05]} Bc5 {[%emt 0:00:45]} 30. Bxf7 {[%emt 0:01:46]} Bxf7 {[%emt 0:00:48]} 31. Rxf7 {[%emt 0:00:01]} Rxg5 {[%emt 0:00:12]} 32. Ne6 {[%emt 0:00:01]} Rh5 {[%emt 0:00:12]} 33. Ke2 {[%emt 0:01:06]} Rc8 {[%emt 0:03:08]} 34. Nxc5 {[%emt 0:00:02]} Rxc5 {[%emt 0:00:30]} 35. Rd1 {[%emt 0:00:19]} Rc8 {[%emt 0:00:19]} 36. Rb7 {[%emt 0:00:25]} Rh6 {[%emt 0:00:19]} 37. Rd5 {[%emt 0:00:29]} Rf6 {[%emt 0:00:41]} 38. Ra7 {[%emt 0:00:16]} b5 {[%emt 0:00:18]} 39. Rdd7 {[%emt 0:00:12]} Rh6 {[%emt 0:00:16]} 40. Ke3 {[%emt 0:00:00]} Rh2 {[%emt 0:00:00]} 41. Rf7 {[%emt 0:00:53]} Rxg2 {[%emt 0:01:45]} 42. Rxh7+ {[%emt 0:00:21]} Kg8 {[%emt 0:00:09]} 43. Rhd7 {[%emt 0:02:16]} f4+ {[%emt 0:05:42]} 44. Kxf4 {[%emt 0:01:18]} Rxf2+ {[%emt 0:00:08]} 45. Kxe4 {[%emt 0:00:09]} Rxb2 {[%emt 0:00:23]} 46. Rxa6 {[%emt 0:00:47]} b4 {[%emt 0:00:45]} 47. cxb4 {[%emt 0:02:05]} Rxb4+ {[%emt 0:00:09]} 48. Kd5 {[%emt 0:01:37]} Rb1 {[%emt 0:00:22]} 49. Raa7 {[%emt 0:01:33]} Rd1+ {[%emt 0:00:19]} 50. Ke4 {[%emt 0:00:24]} Re8+ {[%emt 0:01:10]} 51. Kf3 {[%emt 0:00:22]} Rc1 {[%emt 0:00:05]} 52. Re7 {[%emt 0:00:57]} Rc3+ {[%emt 0:01:46]} 53. Kf2 {[%emt 0:01:06]} Rc2+ {[%emt 0:00:33]} 54. Ke1 {[%emt 0:01:24]} Rxe7+ {[%emt 0:00:08]} 55. Rxe7 {[%emt 0:00:11]} Rxa2 {[%emt 0:00:06]} 1/2-1/2

[Event "IIFL Wealth  4th Mumbai Junior U-13"]
[Site "Mumbai"]
[Date "2018.12.31"]
[Round "2"]
[White "Shah Vrisha Parag"]
[Black "Dhanvij Ansh"]
[Result "0-1"]
[ECO "B90"]
[WhiteElo "1240"]
[BlackElo "1523"]
[Annotator "NA RC"]
[PlyCount "80"]
[EventDate "2018.12.30"]
[EventType "swiss"]
[EventCountry "IND"]
[SourceTitle "playchess.com"]
[Source "ChessBase"]
[SourceQuality "1"]
[TimeControl "40/5400+30:1800+30"]

1. e4 {[%emt 0:00:00]} c5 {[%emt 0:00:00]} 2. Nf3 {[%emt 0:00:00]} d6 3. d4 {[%emt 0:00:00]} cxd4 {[%emt 0:00:00]} 4. Nxd4 {[%emt 0:00:35]} Nf6 {[%emt 0:00:47]} 5. Nc3 {[%emt 0:00:45]} a6 {[%emt 0:00:13]} 6. Be3 {[%emt 0:01:21]} Qc7 {[%emt 0:02:28]} 7. Be2 {[%emt 0:05:15]} b5 {[%emt 0:01:41]} 8. Bf3 {[%emt 0:16:32]} Bb7 {[%emt 0:01:04]} 9. a4 {[%emt 0:10:49]} bxa4 {[%emt 0:07:00]} 10. Rxa4 {[%emt 0:09:42]} e6 {[%emt 0:07:22]} 11. Qe2 {[%emt 0:05:22]} Nbd7 {[%emt 0:06:04]} 12. Rc4 {[%emt 0:05:53]} Qb8 {[%emt 0:00:50]} 13. Na4 {[%emt 0:17:21]} Ne5 {[%emt 0:08:05]} 14. Rc3 {[%emt 0:03:13]} d5 {[%emt 0:04:58]} 15. O-O {[%emt 0:12:04]} dxe4 {[%emt 0:01:53]} 16. Bh5 {[%emt 0:01:17]} g6 {[%emt 0:01:45]} 17. Bg5 {[%emt 0:00:29]} Nxh5 {[%emt 0:00:29]} 18. g4 {[%emt 0:00:21]} h6 {[%emt 0:00:30]} 19. Be3 {[%emt 0:02:42]} Nf6 {[%emt 0:00:39]} 20. h3 {[%emt 0:00:44]} Be7 {[%emt 0:01:20]} 21. Nb6 {[%emt 0:02:03]} Nd5 {[%emt 0:01:30]} 22. Nxd5 {[%emt 0:01:57]} Bxd5 {[%emt 0:00:24]} 23. Bf4 {[%emt 0:02:07]} Bd6 {[%emt 0:01:40]} 24. Bxe5 {[%emt 0:00:35]} Bxe5 {[%emt 0:00:09]} 25. Nc6 {[%emt 0:00:29]} Qxb2 {[%emt 0:01:18]} 26. Rc5 {[%emt 0:00:43]} Bd6 {[%emt 0:00:15]} 27. Rxd5 {[%emt 0:00:32]} exd5 {[%emt 0:00:10]} 28. Rd1 {[%emt 0:00:10]} Qb5 {[%emt 0:01:37]} 29. c4 {[%emt 0:00:50]} Qxc6 {[%emt 0:00:10]} 30. Rxd5 {[%emt 0:00:13]} O-O {[%emt 0:00:32]} 31. Qe3 {[%emt 0:00:51]} Kh7 {[%emt 0:00:46]} 32. h4 {[%emt 0:00:32]} Rad8 {[%emt 0:00:17]} 33. h5 {[%emt 0:00:19]} Qxc4 {[%emt 0:00:45]} 34. hxg6+ {[%emt 0:00:17]} fxg6 {[%emt 0:00:11]} 35. Ra5 {[%emt 0:00:44]} Rb8 {[%emt 0:01:12]} 36. Qe1 {[%emt 0:00:38]} Qd3 {[%emt 0:00:42]} 37. Ra1 {[%emt 0:00:23]} Qh3 {[%emt 0:00:07]} 38. Qxe4 {[%emt 0:00:27]} Bh2+ {[%emt 0:00:16]} 39. Kh1 {[%emt 0:00:05]} Bg3+ {[%emt 0:00:07]} 40. Kg1 {[%emt 0:00:00]} Bxf2# {[%emt 0:00:00]} 0-1

[Event "IIFL Wealth  4th Mumbai Junior U-13"]
[Site "Mumbai"]
[Date "2018.12.31"]
[Round "2"]
[White "Ananya Parikh"]
[Black "Abhinav Dubey"]
[Result "1-0"]
[ECO "B20"]
[WhiteElo "1235"]
[BlackElo "1497"]
[Annotator "NA"]
[PlyCount "127"]
[EventDate "2018.12.30"]
[EventType "swiss"]
[EventCountry "IND"]
[SourceTitle "playchess.com"]
[Source "ChessBase"]
[SourceQuality "1"]
[TimeControl "40/5400+30:1800+30"]

1. e4 {[%emt 0:00:00]} c5 {[%emt 0:00:00]} 2. Ne2 {[%emt 0:00:02]} Nf6 {[%emt 0:00:00]} 3. Nbc3 {[%emt 0:00:25]} d5 {[%emt 0:00:00]} 4. exd5 {[%emt 0:06:47]} Nxd5 {[%emt 0:00:00]} 5. Nxd5 {[%emt 0:05:38]} Qxd5 {[%emt 0:00:05]} 6. d4 {[%emt 0:03:01]} cxd4 {[%emt 0:08:09]} 7. Qxd4 {[%emt 0:01:09]} Qxd4 {[%emt 0:03:10]} 8. Nxd4 {[%emt 0:00:06]} Bd7 {[%emt 0:02:02]} 9. Bf4 {[%emt 0:04:13]} Nc6 {[%emt 0:03:33]} 10. Nb5 {[%emt 0:07:17]} Rc8 {[%emt 0:03:10]} 11. O-O-O {[%emt 0:05:31]} g6 {[%emt 0:09:41]} 12. g3 {[%emt 0:16:03]} Bg7 {[%emt 0:06:40]} 13. Nc7+ {[%emt 0:02:19]} Kd8 {[%emt 0:00:08]} 14. Bh3 {[%emt 0:04:24]} Nd4 {[%emt 0:00:08]} 15. Bxd7 {[%emt 0:10:33]} Kxd7 {[%emt 0:00:10]} 16. Rhe1 {[%emt 0:03:09]} Rxc7 {[%emt 0:28:46]} 17. Bxc7 {[%emt 0:00:18]} Kxc7 {[%emt 0:00:22]} 18. Rxe7+ {[%emt 0:00:45]} Kb6 {[%emt 0:00:20]} 19. Rxf7 {[%emt 0:01:46]} Bh6+ {[%emt 0:00:07]} 20. Kb1 {[%emt 0:01:41]} Re8 {[%emt 0:02:12]} 21. c3 {[%emt 0:03:49]} Nc6 {[%emt 0:00:31]} 22. Rxh7 {[%emt 0:01:41]} Bg5 {[%emt 0:00:12]} 23. f4 {[%emt 0:00:47]} Bd8 {[%emt 0:01:06]} 24. Rd6 {[%emt 0:06:36]} g5 {[%emt 0:01:04]} 25. Rdd7 {[%emt 0:01:46]} Be7 {[%emt 0:03:55]} 26. fxg5 {[%emt 0:01:38]} Bxg5 {[%emt 0:00:08]} 27. Rxb7+ {[%emt 0:01:08]} Ka6 {[%emt 0:00:06]} 28. b4 {[%emt 0:01:59]} Re1+ {[%emt 0:01:02]} 29. Kb2 {[%emt 0:01:36]} Re2+ {[%emt 0:00:25]} 30. Kb3 {[%emt 0:01:23]} Re5 {[%emt 0:00:47]} 31. Rhc7 {[%emt 0:02:25]} Bd8 {[%emt 0:00:44]} 32. Rd7 {[%emt 0:01:45]} Ba5 {[%emt 0:01:39]} 33. a4 {[%emt 0:02:03]} Bxb4 {[%emt 0:00:42]} 34. cxb4 {[%emt 0:00:39]} Re3+ {[%emt 0:00:17]} 35. Kc2 {[%emt 0:01:04]} Nd4+ {[%emt 0:01:01]} 36. Kd2 {[%emt 0:00:27]} Re6 {[%emt 0:01:35]} 37. Rxa7+ {[%emt 0:00:34]} Kb6 {[%emt 0:00:01]} 38. a5+ {[%emt 0:00:36]} Kb5 {[%emt 0:00:27]} 39. Rxd4 {[%emt 0:00:11]} Rh6 {[%emt 0:00:15]} 40. Rb7+ {[%emt 0:00:00]} Ka4 {[%emt 0:00:00]} 41. h4 {[%emt 0:01:24]} Rg6 {[%emt 0:00:17]} 42. g4 {[%emt 0:00:20]} Rf6 {[%emt 0:00:10]} 43. g5 {[%emt 0:00:40]} Rf2+ {[%emt 0:00:23]} 44. Kc3 {[%emt 0:00:34]} Rf3+ {[%emt 0:00:05]} 45. Rd3 {[%emt 0:00:35]} Rf4 {[%emt 0:00:05]} 46. a6 {[%emt 0:00:33]} Rc4+ {[%emt 0:00:17]} 47. Kd2 {[%emt 0:01:08]} Rc2+ {[%emt 0:00:03]} 48. Ke3 {[%emt 0:02:03]} Re2+ {[%emt 0:00:40]} 49. Kd4 {[%emt 0:02:43]} Re4+ {[%emt 0:00:06]} 50. Kc5 {[%emt 0:02:49]} Rc4+ {[%emt 0:00:07]} 51. Kd6 {[%emt 0:00:51]} Rc6+ {[%emt 0:00:08]} 52. Kd7 {[%emt 0:00:06]} Rc3 {[%emt 0:00:13]} 53. a7 {[%emt 0:01:49]} Rxd3+ {[%emt 0:00:02]} 54. Kc8 {[%emt 0:00:31]} Rc3+ {[%emt 0:00:02]} 55. Kb8 {[%emt 0:00:27]} Ra3 {[%emt 0:01:28]} 56. a8=Q+ {[%emt 0:00:22]} Kb3 {[%emt 0:00:02]} 57. Qxa3+ {[%emt 0:00:22]} Kxa3 {[%emt 0:00:01]} 58. Ra7+ {[%emt 0:00:35]} Kxb4 {[%emt 0:00:03]} 59. Rc7 {[%emt 0:00:11]} Ka5 {[%emt 0:00:05]} 60. g6 {[%emt 0:00:32]} Kb4 {[%emt 0:00:07]} 61. g7 {[%emt 0:00:21]} Ka3 {[%emt 0:00:13]} 62. g8=Q {[%emt 0:00:15]} Kb2 {[%emt 0:00:04]} 63. Qg6 {[%emt 0:00:17]} Ka1 {[%emt 0:00:09]} 64. Qb6 {[%emt 0:00:09]} 1-0

[Event "IIFL Wealth  4th Mumbai Junior U-13"]
[Site "Mumbai"]
[Date "2018.12.31"]
[Round "2"]
[White "Prakhar Chaturvedi"]
[Black "Aditya Ramanathan"]
[Result "0-1"]
[ECO "C55"]
[WhiteElo "1235"]
[BlackElo "1493"]
[Annotator "NA RC"]
[PlyCount "106"]
[EventDate "2018.12.30"]
[EventType "swiss"]
[EventCountry "IND"]
[SourceTitle "playchess.com"]
[Source "ChessBase"]
[SourceQuality "1"]
[TimeControl "40/5400+30:1800+30"]

1. e4 {[%emt 0:00:00]} e5 {[%emt 0:00:00]} 2. Nf3 {[%emt 0:00:06]} Nc6 {[%emt 0:00:00]} 3. d4 {[%emt 0:00:11]} exd4 {[%emt 0:00:00]} 4. Bc4 {[%emt 0:00:10]} Nf6 {[%emt 0:01:20]} 5. e5 {[%emt 0:00:10]} Ng4 {[%emt 0:01:46]} 6. Bxf7+ {[%emt 0:01:28]} Kxf7 {[%emt 0:00:08]} 7. Ng5+ {[%emt 0:00:06]} Kg8 {[%emt 0:01:06]} 8. Qxg4 {[%emt 0:00:10]} d6 {[%emt 0:02:48]} 9. e6 {[%emt 0:01:30]} Qf6 {[%emt 0:02:33]} 10. Qe4 {[%emt 0:07:08]} h6 {[%emt 0:02:52]} 11. Qd5 {[%emt 0:05:03]} Ne7 {[%emt 0:02:44]} 12. Qa5 {[%emt 0:02:25]} hxg5 {[%emt 0:01:41]} 13. Bxg5 {[%emt 0:01:00]} Qxe6+ {[%emt 0:00:08]} 14. Kd1 {[%emt 0:00:15]} Qg4+ {[%emt 0:01:34]} 15. Kd2 {[%emt 0:01:39]} b6 {[%emt 0:00:56]} 16. Qb5 {[%emt 0:00:33]} c6 {[%emt 0:01:31]} 17. Qb3+ {[%emt 0:00:04]} Be6 {[%emt 0:00:33]} 18. Qg3 {[%emt 0:00:11]} Qxg3 {[%emt 0:00:17]} 19. fxg3 {[%emt 0:00:22]} Nd5 {[%emt 0:01:19]} 20. Na3 {[%emt 0:00:59]} Nf6 {[%emt 0:00:11]} 21. Rae1 {[%emt 0:00:26]} Bd5 {[%emt 0:00:38]} 22. Rhf1 {[%emt 0:00:37]} Ne4+ {[%emt 0:00:14]} 23. Kd3 {[%emt 0:00:31]} Nxg5 {[%emt 0:00:08]} 24. Kxd4 {[%emt 0:00:14]} g6 {[%emt 0:00:33]} 25. c4 {[%emt 0:00:30]} Bg7+ {[%emt 0:00:05]} 26. Kd3 {[%emt 0:00:06]} Bxg2 {[%emt 0:00:26]} 27. Rf2 {[%emt 0:00:19]} Be4+ {[%emt 0:00:07]} 28. Rxe4 {[%emt 0:00:40]} Nxe4 {[%emt 0:00:08]} 29. Kxe4 {[%emt 0:00:12]} Re8+ {[%emt 0:00:05]} 30. Kd3 {[%emt 0:00:09]} Rh5 {[%emt 0:00:17]} 31. Rd2 {[%emt 0:00:15]} Bh6 {[%emt 0:00:11]} 32. Rf2 {[%emt 0:00:18]} Re3+ {[%emt 0:00:10]} 33. Kc2 {[%emt 0:00:06]} Rhe5 {[%emt 0:00:08]} 34. Rf6 {[%emt 0:00:22]} Re2+ {[%emt 0:00:05]} 35. Kb3 {[%emt 0:00:10]} R5e3+ {[%emt 0:00:19]} 36. Ka4 {[%emt 0:00:19]} a6 {[%emt 0:00:43]} 37. Rxg6+ {[%emt 0:00:08]} Kh7 {[%emt 0:00:06]} 38. Rxd6 {[%emt 0:00:08]} b5+ {[%emt 0:00:11]} 39. cxb5 {[%emt 0:00:16]} cxb5+ {[%emt 0:00:11]} 40. Ka5 {[%emt 0:00:00]} Rxb2 {[%emt 0:00:00]} 41. Kxa6 {[%emt 0:00:33]} Rxa3+ {[%emt 0:01:14]} 42. Kb6 {[%emt 0:00:14]} Raxa2 {[%emt 0:00:32]} 43. Rd7+ {[%emt 0:00:06]} Bg7 {[%emt 0:00:14]} 44. h4 {[%emt 0:00:07]} Ra3 {[%emt 0:00:31]} 45. g4 {[%emt 0:00:09]} Rh3 {[%emt 0:00:18]} 46. h5 {[%emt 0:00:10]} Rh4 {[%emt 0:00:20]} 47. g5 {[%emt 0:00:55]} Rxh5 {[%emt 0:00:10]} 48. Rd5 b4 {[%emt 0:00:21]} 49. Kc6 {[%emt 0:00:35]} b3 {[%emt 0:00:29]} 50. Kd6 {[%emt 0:00:06]} Rg2 {[%emt 0:00:25]} 51. g6+ {[%emt 0:00:15]} Rxg6+ {[%emt 0:00:06]} 52. Kc5 {[%emt 0:00:22]} Rxd5+ {[%emt 0:00:08]} 53. Kxd5 {[%emt 0:00:11]} b2 {[%emt 0:00:04] Ke5} 0-1

[Event "IIFL Wealth  4th Mumbai Junior U-13"]
[Site "Mumbai"]
[Date "2018.12.31"]
[Round "2"]
[White "Roy Aanya"]
[Black "Arjun Sidharth S"]
[Result "1/2-1/2"]
[ECO "B92"]
[WhiteElo "1232"]
[BlackElo "1489"]
[Annotator "NA RC"]
[PlyCount "68"]
[EventDate "2018.12.30"]
[EventType "swiss"]
[EventCountry "IND"]
[SourceTitle "playchess.com"]
[Source "ChessBase"]
[SourceQuality "1"]
[TimeControl "40/5400+30:1800+30"]

1. e4 {[%emt 0:00:00]} c5 {[%emt 0:00:00]} 2. Nf3 {[%emt 0:00:00]} d6 {[%emt 0:00:32]} 3. d4 {[%emt 0:00:00]} cxd4 {[%emt 0:00:36]} 4. Nxd4 {[%emt 0:00:00]} Nf6 {[%emt 0:00:09]} 5. Nc3 {[%emt 0:00:12]} a6 {[%emt 0:01:05]} 6. Be2 {[%emt 0:00:08]} e5 {[%emt 0:00:05]} 7. Nb3 {[%emt 0:00:08]} Be6 {[%emt 0:00:56]} 8. Be3 {[%emt 0:00:39]} Nbd7 {[%emt 0:00:19]} 9. O-O {[%emt 0:00:31]} b5 {[%emt 0:02:08]} 10. a3 {[%emt 0:00:25]} Be7 {[%emt 0:01:27]} 11. Kh1 {[%emt 0:00:38]} O-O {[%emt 0:00:47]} 12. f4 {[%emt 0:00:36]} exf4 {[%emt 0:00:24]} 13. Bxf4 {[%emt 0:00:11]} Ne5 {[%emt 0:00:16]} 14. Nd4 {[%emt 0:09:56]} Qc8 {[%emt 0:10:43]} 15. Nxe6 {[%emt 0:13:13]} Qxe6 {[%emt 0:02:27]} 16. Nd5 {[%emt 0:18:43]} Nxd5 {[%emt 0:13:07]} 17. exd5 {[%emt 0:04:14]} Qd7 {[%emt 0:01:46]} 18. b3 {[%emt 0:06:46]} Bf6 {[%emt 0:07:24]} 19. Ra2 {[%emt 0:08:26]} Rac8 {[%emt 0:03:37]} 20. a4 {[%emt 0:05:27]} Ra8 {[%emt 0:04:16]} 21. axb5 axb5 {[%emt 0:00:10]} 22. Rxa8 {[%emt 0:01:44]} Rxa8 {[%emt 0:00:08]} 23. Bxe5 {[%emt 0:13:12]} Bxe5 {[%emt 0:01:13]} 24. Qd3 {[%emt 0:01:14]} Rb8 {[%emt 0:01:42]} 25. c4 {[%emt 0:03:56]} bxc4 {[%emt 0:01:51]} 26. bxc4 {[%emt 0:00:30]} Qe7 {[%emt 0:00:30]} 27. Rc1 {[%emt 0:04:38]} Re8 {[%emt 0:00:56]} 28. g3 {[%emt 0:00:30]} g6 {[%emt 0:00:47]} 29. Bf1 {[%emt 0:02:58]} Qa7 30. Qc2 {[%emt 0:01:46]} Qd4 {[%emt 0:04:59]} 31. Rd1 {[%emt 0:00:58]} Qg4 {[%emt 0:02:26]} 32. Re1 {[%emt 0:01:43]} Rc8 {[%emt 0:01:43]} 33. Qe2 {[%emt 0:00:40]} Qd4 {[%emt 0:02:03]} 34. Qe3 {[%emt 0:01:47]} Qc5 {[%emt 0:03:53]} 1/2-1/2

[Event "IIFL Wealth  4th Mumbai Junior U-13"]
[Site "Mumbai"]
[Date "2018.12.31"]
[Round "2"]
[White "Aarna Chugh"]
[Black "Ridwan Syed"]
[Result "1-0"]
[ECO "D00"]
[WhiteElo "1164"]
[BlackElo "1261"]
[Annotator "NA RC"]
[PlyCount "86"]
[EventDate "2018.12.30"]
[EventType "swiss"]
[EventCountry "IND"]
[SourceTitle "playchess.com"]
[Source "ChessBase"]
[SourceQuality "1"]
[TimeControl "40/5400+30:1800+30"]

1. d4 {[%emt 0:00:00]} d5 {[%emt 0:00:00]} 2. Bf4 {[%emt 0:00:00]} Nf6 {[%emt 0:00:00]} 3. e3 {[%emt 0:00:00]} Bf5 {[%emt 0:00:14]} 4. c4 {[%emt 0:00:35]} e6 {[%emt 0:00:05]} 5. Nc3 {[%emt 0:00:09]} Bb4 {[%emt 0:00:37]} 6. Nf3 {[%emt 0:11:36]} Nbd7 {[%emt 0:00:49]} 7. Be2 {[%emt 0:01:50]} Bxc3+ {[%emt 0:00:15]} 8. bxc3 {[%emt 0:00:21]} Ne4 {[%emt 0:01:03]} 9. Qb3 {[%emt 0:07:52]} b6 {[%emt 0:01:15]} 10. cxd5 {[%emt 0:08:05]} Ndf6 {[%emt 0:01:04]} 11. Bb5+ {[%emt 0:07:14]} Kf8 {[%emt 0:02:29]} 12. Qb4+ {[%emt 0:10:08]} Kg8 {[%emt 0:00:36]} 13. dxe6 {[%emt 0:00:55]} Bxe6 {[%emt 0:00:20]} 14. Bc6 {[%emt 0:00:30]} Rb8 {[%emt 0:00:44]} 15. O-O {[%emt 0:06:24]} Bd5 {[%emt 0:00:12]} 16. Ne5 {[%emt 0:06:30]} Rc8 {[%emt 0:04:49]} 17. f3 {[%emt 0:08:31]} a5 {[%emt 0:01:03]} 18. Qb2 {[%emt 0:02:16]} Nd6 {[%emt 0:00:51]} 19. e4 {[%emt 0:02:53]} Bc4 {[%emt 0:00:40]} 20. Nxc4 {[%emt 0:03:42]} Nxc4 {[%emt 0:00:22]} 21. Qe2 {[%emt 0:01:56]} Na3 {[%emt 0:01:30]} 22. Bg5 {[%emt 0:06:16]} h6 {[%emt 0:00:24]} 23. Bxf6 {[%emt 0:01:09]} Qxf6 {[%emt 0:00:09]} 24. Ba4 {[%emt 0:01:28]} Kh7 {[%emt 0:00:36]} 25. e5 {[%emt 0:00:58]} Qe7 {[%emt 0:00:30]} 26. Qd3+ {[%emt 0:01:45]} g6 {[%emt 0:00:20]} 27. Rfe1 {[%emt 0:01:29]} Rhd8 {[%emt 0:00:18]} 28. Bb3 {[%emt 0:01:34]} Kg7 {[%emt 0:00:13]} 29. e6 {[%emt 0:01:08]} f5 {[%emt 0:00:24]} 30. Qe3 {[%emt 0:00:52]} Nb5 {[%emt 0:00:25]} 31. Qe5+ {[%emt 0:00:12]} Kh7 {[%emt 0:00:26]} 32. Qxb5 {[%emt 0:00:16]} Rd6 {[%emt 0:00:56]} 33. Qe5 {[%emt 0:01:00]} Rcd8 {[%emt 0:00:32]} 34. Rad1 {[%emt 0:01:05]} a4 {[%emt 0:00:14]} 35. Bc4 {[%emt 0:01:11]} b5 {[%emt 0:00:20]} 36. Qxb5 {[%emt 0:00:46]} Rb6 {[%emt 0:00:26]} 37. Qxa4 {[%emt 0:01:15]} Rdd6 {[%emt 0:00:26]} 38. Rb1 {[%emt 0:00:38]} Ra6 {[%emt 0:00:18]} 39. Bxa6 {[%emt 0:00:12]} Rxe6 {[%emt 0:00:22]} 40. Rxe6 {[%emt 0:00:00]} Qxe6 {[%emt 0:00:00]} 41. Kf2 {[%emt 0:01:17]} h5 {[%emt 0:00:44]} 42. Qc4 {[%emt 0:00:31]} Qe7 {[%emt 0:00:30]} 43. g3 {[%emt 0:00:28]} Kh6 {[%emt 0:00:18]} 1-0

[Event "IIFL Wealth  4th Mumbai Junior U-13"]
[Site "Mumbai"]
[Date "2018.12.31"]
[Round "2"]
[White "Dabhade Arnav"]
[Black "Larmet, Nino"]
[Result "1-0"]
[ECO "C50"]
[WhiteElo "1064"]
[BlackElo "1835"]
[Annotator "NA RC"]
[PlyCount "76"]
[EventDate "2018.12.30"]
[EventType "swiss"]
[EventCountry "IND"]
[SourceTitle "playchess.com"]
[Source "ChessBase"]
[SourceQuality "1"]
[TimeControl "40/5400+30:1800+30"]

1. e4 {[%emt 0:00:00]} e5 {[%emt 0:00:00]} 2. Nf3 {[%emt 0:00:00]} Nc6 {[%emt 0:00:00]} 3. Bc4 {[%emt 0:00:00]} Bc5 {[%emt 0:00:00]} 4. Nc3 {[%emt 0:00:09]} Nf6 {[%emt 0:00:41]} 5. d3 {[%emt 0:00:08]} h6 {[%emt 0:00:34]} 6. O-O {[%emt 0:00:27]} O-O {[%emt 0:00:28]} 7. Be3 {[%emt 0:00:06]} Bb6 {[%emt 0:00:42]} 8. h3 {[%emt 0:00:20]} d6 {[%emt 0:00:05]} 9. Qd2 {[%emt 0:00:06]} Na5 {[%emt 0:10:32] C50: Hungarian Defence and Giuoco Pianissimo} 10. Bb5 {[%emt 0:03:43]} (10. Bb3 Nxb3 11. axb3 Bd7 12. Nh2 c6 13. Bxb6 Qxb6 14. Qe3 Qxe3 15. fxe3 a6 16. Nf3 Rfe8 17. Nh4 {½-½ (49) Pridorozhni,A (2556)-Zvjaginsev,V (2660) St Petersburg 2015}) 10... Bxe3 $146 {[%emt 0:10:32]} ({Predecessor:} 10... Nc6 11. Ba4 Bd7 12. Rfe1 Bxe3 13. Rxe3 Nh5 14. Bb3 Nf4 15. Nd5 Nxd5 16. Bxd5 Ne7 17. Bb3 {0-1 (39) Herzenstein,G-Etlender,G Pinneberg 1996}) 11. Qxe3 {[%emt 0:03:23]} a6 {[%emt 0:00:42]} 12. Ba4 {[%emt 0:00:23]} b5 {[%emt 0:00:20]} 13. Bb3 $1 {[%emt 0:00:16]} Nxb3 {[%emt 0:02:42]} 14. axb3 {[%emt 0:00:11]} c5 {[%emt 0:00:24]} 15. Rfe1 {[%emt 0:03:13]} (15. Nxb5 $1 $16 Bxh3 16. Nxd6 (16. gxh3 axb5 17. Rxa8 Qxa8 $15) 16... Qxd6 17. gxh3) 15... Be6 {[%emt 0:02:00]} 16. Red1 {[%emt 0:03:47]} Nh5 {[%emt 0:05:34]} 17. Ne2 {[%emt 0:01:15]} f5 {[%emt 0:11:17] [#]} (17... a5 $11 {keeps the balance.}) 18. exf5 $1 {[%emt 0:03:46]} Bxf5 {[%emt 0:00:37]} 19. g4 {[%emt 0:01:03]} Qf6 {[%emt 0:11:29]} (19... Bc8 $16 {keeps fighting.}) 20. gxf5 {[%emt 0:04:19]} ({Resist} 20. gxh5 $6 Bxh3 21. Nd2 Qh4 $16) 20... Qxf5 {[%emt 0:00:23]} 21. Nh2 {[%emt 0:03:49]} Rf6 {[%emt 0:05:11]} (21... Qe6 {was called for.} 22. Re1 Nf6) 22. Rf1 {[%emt 0:01:48]} Raf8 {[%emt 0:21:29]} 23. Kh1 {[%emt 0:01:40]} ({Better is} 23. Rxa6 $18 Qc8 24. Rfa1) 23... Qc8 {[%emt 0:01:40]} 24. Rad1 $16 {[%emt 0:06:49]} Qa8+ {[%emt 0:07:28]} 25. f3 {[%emt 0:00:21]} Qd5 {[%emt 0:02:32]} 26. Rf2 {[%emt 0:03:59]} c4 {[%emt 0:02:48]} 27. bxc4 {[%emt 0:01:24]} bxc4 {[%emt 0:00:04]} 28. Qe4 {[%emt 0:00:36]} Qe6 {[%emt 0:01:08]} 29. Qxc4 {[%emt 0:00:58]} d5 {[%emt 0:00:00]} 30. Qg4 {[%emt 0:00:56]} Qf7 {[%emt 0:00:27]} 31. Qg2 {[%emt 0:01:42]} Rg6 {[%emt 0:01:46]} 32. Ng4 {[%emt 0:02:10]} Nf4 {[%emt 0:00:28]} 33. Nxf4 {[%emt 0:00:15]} Qxf4 {[%emt 0:00:27]} 34. Qh2 {[%emt 0:00:38]} Qxh2+ {[%emt 0:01:42]} 35. Kxh2 {[%emt 0:00:42]} Re6 {[%emt 0:00:03]} 36. Re1 {[%emt 0:00:38]} Rb8 {[%emt 0:00:17]} 37. b3 {[%emt 0:00:27]} Rbe8 {[%emt 0:00:07]} 38. Rfe2 {[%emt 0:00:38]} Kf7 {[%emt 0:00:40]} 1-0